[Event "*** SCC Grand Prix: Titled Tuesday Blitz"]
[Site "Chess.com"]
[Date "2020.09.08"]
[Round "6"]
[White "Violord"]
[Black "Anton_Demchenko"]
[Result "0-1"]
[WhiteElo "2677"]
[BlackElo "2862"]
[TimeControl "180+1"]
[EndTime "11:08:55 PDT"]
[Termination "Anton_Demchenko won on time"]

1. Nf3 {[%clk 0:02:59.7]} 1... Nf6 {[%clk 0:02:59.5]} 2. g3 {[%clk 0:02:59.3]}
2... g6 {[%clk 0:02:59.8]} 3. Bg2 {[%clk 0:02:59.1]} 3... Bg7 {[%clk 0:03:00.6]}
4. O-O {[%clk 0:02:59.3]} 4... O-O {[%clk 0:03:01.5]} 5. c4 {[%clk 0:02:58.6]}
5... d6 {[%clk 0:03:02.4]} 6. d4 {[%clk 0:02:54.2]} 6... Nbd7 {[%clk 0:03:02.4]}
7. Nc3 {[%clk 0:02:50.5]} 7... e5 {[%clk 0:03:02.5]} 8. e4 {[%clk 0:02:50]} 8...
exd4 {[%clk 0:03:03]} 9. Nxd4 {[%clk 0:02:49.3]} 9... Re8 {[%clk 0:03:03.9]} 10.
f3 {[%clk 0:02:48.1]} 10... c6 {[%clk 0:03:01.9]} 11. Kh1 {[%clk 0:02:44.5]}
11... a5 {[%clk 0:03:00.7]} 12. Bf4 {[%clk 0:02:40]} 12... Ne5 {[%clk
0:02:59.2]} 13. b3 {[%clk 0:02:38.9]} 13... h5 {[%clk 0:02:43.3]} 14. Qd2 {[%clk
0:02:36.5]} 14... a4 {[%clk 0:02:29]} 15. Rad1 {[%clk 0:02:27.9]} 15... axb3
{[%clk 0:02:28.8]} 16. axb3 {[%clk 0:02:27.2]} 16... Nfd7 {[%clk 0:02:09]} 17.
Qc2 {[%clk 0:02:22.1]} 17... h4 {[%clk 0:01:59.1]} 18. g4 {[%clk 0:02:17.8]}
18... Qa5 {[%clk 0:01:13]} 19. h3 {[%clk 0:02:06.3]} 19... Nc5 {[%clk
0:01:00.1]} 20. Bc1 {[%clk 0:02:00.8]} 20... Qb6 {[%clk 0:00:52.7]} 21. Be3
{[%clk 0:01:33.8]} 21... Qb4 {[%clk 0:00:32]} 22. Rb1 {[%clk 0:01:31.3]} 22...
Ned3 {[%clk 0:00:17.7]} 23. Rfd1 {[%clk 0:01:25.9]} 23... Ne5 {[%clk 0:00:11.5]}
24. Bf2 {[%clk 0:01:12.9]} 24... Bf6 {[%clk 0:00:10.3]} 25. f4 {[%clk
0:01:06.5]} 25... Nxg4 {[%clk 0:00:10.4]} 26. hxg4 {[%clk 0:01:04.9]} 26... Bxg4
{[%clk 0:00:11.3]} 27. Rg1 {[%clk 0:01:00.5]} 27... h3 {[%clk 0:00:11.4]} 28.
Bf1 {[%clk 0:00:55.7]} 28... Bh5 {[%clk 0:00:11.3]} 29. f5 {[%clk 0:00:53.2]}
29... Kh7 {[%clk 0:00:09.4]} 30. Be2 {[%clk 0:00:48]} 30... Bxe2 {[%clk
0:00:06.7]} 31. Ndxe2 {[%clk 0:00:47.9]} 31... Ra3 {[%clk 0:00:04.4]} 32. Rg3
{[%clk 0:00:46.6]} 32... Rxb3 {[%clk 0:00:03.6]} 33. Rxh3+ {[%clk 0:00:45.9]}
33... Kg7 {[%clk 0:00:04.2]} 34. Rxb3 {[%clk 0:00:44.7]} 34... Qxb3 {[%clk
0:00:05.1]} 35. Qxb3 {[%clk 0:00:44]} 35... Nxb3 {[%clk 0:00:06]} 36. fxg6
{[%clk 0:00:40.1]} 36... fxg6 {[%clk 0:00:06.9]} 37. Rd3 {[%clk 0:00:30.8]}
37... Na5 {[%clk 0:00:05.3]} 38. Rxd6 {[%clk 0:00:29.1]} 38... Nxc4 {[%clk
0:00:05.7]} 39. Rd7+ {[%clk 0:00:29.1]} 39... Re7 {[%clk 0:00:06.2]} 40. Rxe7+
{[%clk 0:00:27.7]} 40... Bxe7 {[%clk 0:00:07.1]} 41. Nf4 {[%clk 0:00:26]} 41...
Kf7 {[%clk 0:00:06.7]} 42. Kg2 {[%clk 0:00:24.8]} 42... b5 {[%clk 0:00:06.2]}
43. Nd3 {[%clk 0:00:22.2]} 43... Bf6 {[%clk 0:00:06.1]} 44. Nb1 {[%clk
0:00:19.6]} 44... g5 {[%clk 0:00:05.1]} 45. Bc5 {[%clk 0:00:18.3]} 45... Ke6
{[%clk 0:00:05.1]} 46. Kf3 {[%clk 0:00:16.9]} 46... Bd8 {[%clk 0:00:04]} 47. Nb4
{[%clk 0:00:15.4]} 47... Kd7 {[%clk 0:00:03.6]} 48. Nc3 {[%clk 0:00:14.3]} 48...
Ba5 {[%clk 0:00:03.6]} 49. Ne2 {[%clk 0:00:11.9]} 49... Ne5+ {[%clk 0:00:03.7]}
50. Kg3 {[%clk 0:00:10.2]} 50... Ke6 {[%clk 0:00:03.6]} 51. Nd4+ {[%clk
0:00:08.9]} 51... Kd7 {[%clk 0:00:04.1]} 52. Nb3 {[%clk 0:00:08.5]} 52... Bc7
{[%clk 0:00:03.6]} 53. Kg2 {[%clk 0:00:08.6]} 53... Bd6 {[%clk 0:00:03.9]} 54.
Kg3 {[%clk 0:00:04.1]} 54... Bxc5 {[%clk 0:00:04.1]} 55. Nxc5+ {[%clk
0:00:03.6]} 55... Kd6 {[%clk 0:00:05]} 56. Nb7+ {[%clk 0:00:03.4]} 56... Kc7
{[%clk 0:00:05.5]} 57. Nc5 {[%clk 0:00:03.5]} 57... Kb6 {[%clk 0:00:05.6]} 58.
Ncd3 {[%clk 0:00:02.5]} 58... Nc4 {[%clk 0:00:03.8]} 59. e5 {[%clk 0:00:01.8]}
59... c5 {[%clk 0:00:03.8]} 0-1

[Event "*** SCC Grand Prix: Titled Tuesday Blitz"]
[Site "Chess.com"]
[Date "2020.09.08"]
[Round "6"]
[White "suyu28"]
[Black "MattyDPerrine"]
[Result "0-1"]
[WhiteElo "2552"]
[BlackElo "2368"]
[TimeControl "180+1"]
[EndTime "11:08:56 PDT"]
[Termination "MattyDPerrine won on time"]

1. Nf3 {[%clk 0:02:57.7]} 1... c5 {[%clk 0:02:58.4]} 2. c3 {[%clk 0:02:54.9]}
2... Nf6 {[%clk 0:02:57.7]} 3. d4 {[%clk 0:02:55.2]} 3... e6 {[%clk 0:02:58.3]}
4. Bf4 {[%clk 0:02:55]} 4... b6 {[%clk 0:02:58.7]} 5. e3 {[%clk 0:02:55.3]} 5...
Bb7 {[%clk 0:02:59.3]} 6. Nbd2 {[%clk 0:02:55.8]} 6... Be7 {[%clk 0:02:59.2]} 7.
Bd3 {[%clk 0:02:55.9]} 7... Nc6 {[%clk 0:02:58.1]} 8. a3 {[%clk 0:02:54.8]} 8...
d5 {[%clk 0:02:58.1]} 9. Qe2 {[%clk 0:02:49.7]} 9... Bd6 {[%clk 0:02:52]} 10.
Bg3 {[%clk 0:02:49.1]} 10... O-O {[%clk 0:02:48.9]} 11. e4 {[%clk 0:02:49.2]}
11... dxe4 {[%clk 0:02:37.9]} 12. Nxe4 {[%clk 0:02:48.8]} 12... Nxe4 {[%clk
0:02:38.1]} 13. Qxe4 {[%clk 0:02:30.9]} 13... g6 {[%clk 0:02:34.2]} 14. dxc5
{[%clk 0:02:29.1]} 14... Bxc5 {[%clk 0:02:25]} 15. Qe2 {[%clk 0:02:27.3]} 15...
Re8 {[%clk 0:02:18.1]} 16. O-O-O {[%clk 0:02:15.8]} 16... Qf6 {[%clk 0:02:12.6]}
17. Kb1 {[%clk 0:02:06.3]} 17... Bf8 {[%clk 0:01:37.1]} 18. Be4 {[%clk 0:02:01]}
18... Na5 {[%clk 0:01:30.4]} 19. Bxb7 {[%clk 0:01:56.3]} 19... Nxb7 {[%clk
0:01:29.5]} 20. Be5 {[%clk 0:01:52]} 20... Qf5+ {[%clk 0:01:22.1]} 21. Ka1
{[%clk 0:01:51.9]} 21... f6 {[%clk 0:01:22.4]} 22. g4 {[%clk 0:01:39.4]} 22...
Qxg4 {[%clk 0:01:21.2]} 23. Bxf6 {[%clk 0:01:39.2]} 23... e5 {[%clk 0:01:15.9]}
24. Rhg1 {[%clk 0:01:14.2]} 24... Qe6 {[%clk 0:01:10.6]} 25. Bg5 {[%clk
0:01:03.8]} 25... Nc5 {[%clk 0:01:04.8]} 26. h4 {[%clk 0:00:50.9]} 26... Nb3+
{[%clk 0:00:41.8]} 27. Kb1 {[%clk 0:00:50.5]} 27... Qf5+ {[%clk 0:00:42.1]} 28.
Ka2 {[%clk 0:00:48.5]} 28... Qe6 {[%clk 0:00:39.3]} 29. Kb1 {[%clk 0:00:24.5]}
29... Bg7 {[%clk 0:00:28.3]} 30. h5 {[%clk 0:00:15.7]} 30... h6 {[%clk 0:00:26]}
31. Bxh6 {[%clk 0:00:13.4]} 31... Qf5+ {[%clk 0:00:17.6]} 32. Ka2 {[%clk
0:00:11.4]} 32... Qf7 {[%clk 0:00:12.9]} 33. hxg6 {[%clk 0:00:07.5]} 33... Nc1+
{[%clk 0:00:05.3]} 34. Kb1 {[%clk 0:00:07.8]} 34... Qf5+ {[%clk 0:00:05.5]} 35.
Kxc1 {[%clk 0:00:07.8]} 35... Bxh6+ {[%clk 0:00:06.1]} 36. Rd2 {[%clk
0:00:07.3]} 36... Bxd2+ {[%clk 0:00:05.7]} 37. Nxd2 {[%clk 0:00:07.2]} 37... Kg7
{[%clk 0:00:05.7]} 38. Ne4 {[%clk 0:00:07.5]} 38... Qf4+ {[%clk 0:00:06.1]} 39.
Kb1 {[%clk 0:00:07.1]} 39... Rad8 {[%clk 0:00:06.1]} 40. Qc4 {[%clk 0:00:07]}
40... Re7 {[%clk 0:00:05.1]} 41. Rh1 {[%clk 0:00:06.9]} 41... Rh8 {[%clk
0:00:02.7]} 42. Rxh8 {[%clk 0:00:06.9]} 42... Kxh8 {[%clk 0:00:03.6]} 43. Qd5
{[%clk 0:00:07.1]} 43... Kg7 {[%clk 0:00:03]} 44. Ka2 {[%clk 0:00:03.6]} 44...
Qf5 {[%clk 0:00:03.4]} 45. Qd3 {[%clk 0:00:02.8]} 45... Qe6+ {[%clk 0:00:03.7]}
46. c4 {[%clk 0:00:03.3]} 46... Qxg6 {[%clk 0:00:04.2]} 47. a4 {[%clk
0:00:02.2]} 47... Qe6 {[%clk 0:00:04.4]} 48. b3 {[%clk 0:00:02]} 48... Rd7
{[%clk 0:00:04.6]} 49. Qg3+ {[%clk 0:00:02.3]} 49... Kf8 {[%clk 0:00:04.7]} 50.
Qf3+ {[%clk 0:00:02.4]} 50... Ke7 {[%clk 0:00:04.2]} 51. Qe3 {[%clk 0:00:02.1]}
51... Qf5 {[%clk 0:00:02.8]} 52. Qe2 {[%clk 0:00:02]} 52... Qf4 {[%clk
0:00:02.5]} 53. Nc3 {[%clk 0:00:02.4]} 53... Rd2+ {[%clk 0:00:02.8]} 54. Ka3
{[%clk 0:00:02.3]} 54... Rxe2 {[%clk 0:00:03.1]} 55. Nxe2 {[%clk 0:00:03]} 55...
Qxf2 {[%clk 0:00:04]} 56. Nc3 {[%clk 0:00:03.8]} 56... Qc5+ {[%clk 0:00:04.5]}
57. Kb2 {[%clk 0:00:03]} 57... Qd4 {[%clk 0:00:05]} 58. Kc2 {[%clk 0:00:03.6]}
58... e4 {[%clk 0:00:05.3]} 59. Nd5+ {[%clk 0:00:03.8]} 59... Kd6 {[%clk
0:00:05.3]} 60. Nf4 {[%clk 0:00:04.4]} 60... e3 {[%clk 0:00:05.1]} 61. Ne2
{[%clk 0:00:04.8]} 61... Qd2+ {[%clk 0:00:05.4]} 0-1

[Event "*** SCC Grand Prix: Titled Tuesday Blitz"]
[Site "Chess.com"]
[Date "2020.09.08"]
[Round "6"]
[White "chessdjw"]
[Black "guillembaches"]
[Result "1/2-1/2"]
[WhiteElo "2573"]
[BlackElo "2415"]
[TimeControl "180+1"]
[EndTime "11:08:58 PDT"]
[Termination "Game drawn by repetition"]

1. e4 {[%clk 0:03:00.9]} 1... c5 {[%clk 0:03:00.2]} 2. Nf3 {[%clk 0:03:01.2]}
2... d6 {[%clk 0:03:00.7]} 3. d4 {[%clk 0:02:59.4]} 3... cxd4 {[%clk 0:03:01.6]}
4. Nxd4 {[%clk 0:03:00.1]} 4... Nf6 {[%clk 0:03:02.2]} 5. Nc3 {[%clk 0:03:00.6]}
5... Nc6 {[%clk 0:03:02.7]} 6. Bg5 {[%clk 0:02:59.2]} 6... e6 {[%clk 0:03:02.5]}
7. Qd2 {[%clk 0:02:58.7]} 7... h6 {[%clk 0:03:03]} 8. Nxc6 {[%clk 0:02:55.3]}
8... bxc6 {[%clk 0:03:02.5]} 9. Bf4 {[%clk 0:02:54.1]} 9... e5 {[%clk
0:03:02.2]} 10. Bg3 {[%clk 0:02:51.6]} 10... Nh5 {[%clk 0:02:58.9]} 11. Bc4
{[%clk 0:02:49.6]} 11... Be7 {[%clk 0:02:53.9]} 12. O-O-O {[%clk 0:02:49.1]}
12... Bg5 {[%clk 0:02:13.5]} 13. f4 {[%clk 0:02:48.6]} 13... exf4 {[%clk
0:02:13.3]} 14. Bf2 {[%clk 0:02:48.6]} 14... O-O {[%clk 0:02:09.6]} 15. h4
{[%clk 0:02:22.4]} 15... Be7 {[%clk 0:01:55]} 16. Qe2 {[%clk 0:01:38.3]} 16...
Ng3 {[%clk 0:01:46.7]} 17. Bxg3 {[%clk 0:01:38]} 17... fxg3 {[%clk 0:01:47.6]}
18. Rhf1 {[%clk 0:01:37.9]} 18... Bxh4 {[%clk 0:01:42]} 19. Kb1 {[%clk
0:01:26.2]} 19... Qe7 {[%clk 0:01:30.7]} 20. Qh5 {[%clk 0:01:22]} 20... Bf6
{[%clk 0:01:26.2]} 21. Ne2 {[%clk 0:00:52.7]} 21... Rb8 {[%clk 0:01:07]} 22. Bb3
{[%clk 0:00:52.4]} 22... Be6 {[%clk 0:01:01.7]} 23. Nxg3 {[%clk 0:00:49.8]}
23... Rb5 {[%clk 0:00:55.3]} 24. Nf5 {[%clk 0:00:49.4]} 24... Bxf5 {[%clk
0:00:55.1]} 25. Rxf5 {[%clk 0:00:45.5]} 25... Qxe4 {[%clk 0:00:50.7]} 26. Rxb5
{[%clk 0:00:39.2]} 26... cxb5 {[%clk 0:00:51.6]} 27. Qxb5 {[%clk 0:00:38]} 27...
Qxg2 {[%clk 0:00:49.5]} 28. a4 {[%clk 0:00:35.8]} 28... Qf3 {[%clk 0:00:40.4]}
29. Rf1 {[%clk 0:00:25.1]} 29... Qe4 {[%clk 0:00:28.7]} 30. Qa6 {[%clk
0:00:19.4]} 30... h5 {[%clk 0:00:21.4]} 31. Ka2 {[%clk 0:00:17]} 31... h4 {[%clk
0:00:20.8]} 32. Qxa7 {[%clk 0:00:17.2]} 32... Qe5 {[%clk 0:00:20.6]} 33. c3
{[%clk 0:00:16]} 33... Qe2 {[%clk 0:00:20.4]} 34. Rf2 {[%clk 0:00:13.3]} 34...
Qe5 {[%clk 0:00:20.5]} 35. Rf1 {[%clk 0:00:09.3]} 35... h3 {[%clk 0:00:20.5]}
36. Qf2 {[%clk 0:00:09.5]} 36... h2 {[%clk 0:00:20.2]} 37. Rh1 {[%clk
0:00:09.6]} 37... g6 {[%clk 0:00:20.1]} 38. Rxh2 {[%clk 0:00:09.7]} 38... Kg7
{[%clk 0:00:20.4]} 39. Rg2 {[%clk 0:00:10.2]} 39... Rh8 {[%clk 0:00:20.3]} 40.
Qf3 {[%clk 0:00:10.5]} 40... Rh4 {[%clk 0:00:20.1]} 41. Rf2 {[%clk 0:00:10.4]}
41... Rh2 {[%clk 0:00:18.3]} 42. Rxh2 {[%clk 0:00:08.2]} 42... Qxh2 {[%clk
0:00:19.2]} 43. Qd5 {[%clk 0:00:08.3]} 43... Qf2 {[%clk 0:00:16.7]} 44. Qxf7+
{[%clk 0:00:08.5]} 44... Kh6 {[%clk 0:00:17.3]} 45. Qf8+ {[%clk 0:00:08.6]}
45... Kg5 {[%clk 0:00:17.1]} 46. Qxd6 {[%clk 0:00:09]} 46... Kh4 {[%clk
0:00:15]} 47. Qc6 {[%clk 0:00:07.2]} 47... g5 {[%clk 0:00:15.1]} 48. Qh1+ {[%clk
0:00:06.4]} 48... Kg3 {[%clk 0:00:15.4]} 49. Qc6 {[%clk 0:00:04.4]} 49... g4
{[%clk 0:00:15.4]} 50. a5 {[%clk 0:00:04.9]} 50... Kh2 {[%clk 0:00:15.5]} 51. a6
{[%clk 0:00:05.3]} 51... g3 {[%clk 0:00:15.8]} 52. Bd5 {[%clk 0:00:05.2]} 52...
Kg1 {[%clk 0:00:14.3]} 53. Qb7 {[%clk 0:00:04.9]} 53... Bxc3 {[%clk 0:00:14.4]}
54. a7 {[%clk 0:00:04.8]} 54... Bxb2 {[%clk 0:00:13.4]} 55. a8=Q {[%clk
0:00:04.6]} 55... Bc3+ {[%clk 0:00:13.8]} 56. Ka3 {[%clk 0:00:04.8]} 56... Qc5+
{[%clk 0:00:13.6]} 57. Kb3 {[%clk 0:00:05.1]} 57... Be5 {[%clk 0:00:13.3]} 58.
Be4 {[%clk 0:00:02.8]} 58... Qe3+ {[%clk 0:00:13.3]} 59. Ka4 {[%clk 0:00:03.1]}
59... Kf2 {[%clk 0:00:13.5]} 60. Kb5 {[%clk 0:00:03.6]} 60... Qb3+ {[%clk
0:00:13.3]} 61. Kc6 {[%clk 0:00:03.5]} 61... Qc4+ {[%clk 0:00:13.3]} 62. Kd7
{[%clk 0:00:03.9]} 62... Qf7+ {[%clk 0:00:12.2]} 63. Kc6 {[%clk 0:00:03.3]}
63... Qc4+ {[%clk 0:00:12.3]} 64. Kd7 {[%clk 0:00:03.7]} 64... Qf7+ {[%clk
0:00:12.4]} 65. Kc6 {[%clk 0:00:03.6]} 65... Qc4+ {[%clk 0:00:11.5]} 1/2-1/2

[Event "*** SCC Grand Prix: Titled Tuesday Blitz"]
[Site "Chess.com"]
[Date "2020.09.08"]
[Round "6"]
[White "Off-War"]
[Black "Guenplen"]
[Result "0-1"]
[WhiteElo "2682"]
[BlackElo "2903"]
[TimeControl "180+1"]
[EndTime "11:08:59 PDT"]
[Termination "Guenplen won by resignation"]

1. d4 {[%clk 0:02:51.6]} 1... d5 {[%clk 0:02:59.5]} 2. c4 {[%clk 0:02:50.9]}
2... e6 {[%clk 0:02:59.8]} 3. Nc3 {[%clk 0:02:48.1]} 3... Nf6 {[%clk 0:02:59.3]}
4. cxd5 {[%clk 0:02:48.4]} 4... exd5 {[%clk 0:03:00.2]} 5. Bg5 {[%clk
0:02:48.5]} 5... c6 {[%clk 0:03:00.4]} 6. e3 {[%clk 0:02:49]} 6... Bf5 {[%clk
0:03:00.2]} 7. Qf3 {[%clk 0:02:48.8]} 7... Bg6 {[%clk 0:03:00.4]} 8. Bxf6 {[%clk
0:02:49.3]} 8... Qxf6 {[%clk 0:03:01.3]} 9. Qxf6 {[%clk 0:02:49.6]} 9... gxf6
{[%clk 0:03:02.2]} 10. Nf3 {[%clk 0:02:50.3]} 10... Be7 {[%clk 0:03:02.4]} 11.
Ne2 {[%clk 0:02:36.3]} 11... Nd7 {[%clk 0:03:01.3]} 12. Ng3 {[%clk 0:02:31.6]}
12... Nb6 {[%clk 0:02:07.4]} 13. Nh4 {[%clk 0:02:28.7]} 13... Nc4 {[%clk
0:02:05.2]} 14. O-O-O {[%clk 0:02:17.4]} 14... Nd6 {[%clk 0:02:03.9]} 15. Bd3
{[%clk 0:02:15.1]} 15... Rg8 {[%clk 0:01:57.1]} 16. Rhg1 {[%clk 0:02:10.1]}
16... a5 {[%clk 0:01:55.8]} 17. Nhf5 {[%clk 0:02:09.8]} 17... Nxf5 {[%clk
0:01:52.4]} 18. Nxf5 {[%clk 0:02:07.2]} 18... Bxf5 {[%clk 0:01:32.1]} 19. Bxf5
{[%clk 0:02:08]} 19... h6 {[%clk 0:01:33]} 20. g4 {[%clk 0:02:04]} 20... Bd6
{[%clk 0:01:31.6]} 21. h4 {[%clk 0:02:02.8]} 21... Kd8 {[%clk 0:01:31.3]} 22.
Kc2 {[%clk 0:01:55.5]} 22... Kc7 {[%clk 0:01:31.3]} 23. Kd3 {[%clk 0:01:55.8]}
23... a4 {[%clk 0:01:30.4]} 24. a3 {[%clk 0:01:54.9]} 24... Ra5 {[%clk
0:01:27.6]} 25. Rd2 {[%clk 0:01:53.2]} 25... Rb5 {[%clk 0:01:25.8]} 26. h5
{[%clk 0:01:48.7]} 26... Rb3+ {[%clk 0:01:23.5]} 27. Kc2 {[%clk 0:01:39.5]}
27... Ra8 {[%clk 0:01:24.4]} 28. Kc1 {[%clk 0:01:34.9]} 28... Rb6 {[%clk
0:01:19.2]} 29. Bd3 {[%clk 0:01:25.6]} 29... Ra5 {[%clk 0:01:16.4]} 30. Rc2
{[%clk 0:01:22]} 30... Rb3 {[%clk 0:01:15.8]} 31. Rd1 {[%clk 0:01:17.4]} 31...
Ra8 {[%clk 0:01:13]} 32. Bf5 {[%clk 0:01:14.8]} 32... Rb6 {[%clk 0:01:08.4]} 33.
Rc3 {[%clk 0:01:10.6]} 33... Kd8 {[%clk 0:00:59.9]} 34. Bc2 {[%clk 0:01:07.3]}
34... Kc7 {[%clk 0:00:54.9]} 35. Bb1 {[%clk 0:01:07.2]} 35... Kd8 {[%clk
0:00:53.8]} 36. Ba2 {[%clk 0:01:07.4]} 36... Ke7 {[%clk 0:00:53.4]} 37. Re1
{[%clk 0:01:07.7]} 37... Kf8 {[%clk 0:00:53.3]} 38. e4 {[%clk 0:01:04.4]} 38...
Bf4+ {[%clk 0:00:46.9]} 39. Kc2 {[%clk 0:01:02.5]} 39... Ra5 {[%clk 0:00:40.6]}
40. exd5 {[%clk 0:00:57.4]} 40... Rab5 {[%clk 0:00:38.6]} 41. Rb1 {[%clk
0:00:52.5]} 41... cxd5 {[%clk 0:00:37.8]} 42. b4 {[%clk 0:00:47.8]} 42... axb3+
{[%clk 0:00:36.8]} 43. Bxb3 {[%clk 0:00:48.3]} 43... Kg7 {[%clk 0:00:31.8]} 44.
Ba2 {[%clk 0:00:41.4]} 44... Rxb1 {[%clk 0:00:30.7]} 45. Bxb1 {[%clk 0:00:42.3]}
45... f5 {[%clk 0:00:25.9]} 46. gxf5 {[%clk 0:00:40.9]} 46... Kf6 {[%clk
0:00:25.5]} 47. Ba2 {[%clk 0:00:40.8]} 47... Rb5 {[%clk 0:00:13.9]} 48. Rc5
{[%clk 0:00:31.1]} 48... Rxc5+ {[%clk 0:00:13.6]} 49. dxc5 {[%clk 0:00:32]}
49... Ke5 {[%clk 0:00:14.5]} 50. Kd3 {[%clk 0:00:26.2]} 50... Bg5 {[%clk
0:00:14.5]} 51. f4+ {[%clk 0:00:13.2]} 51... Bxf4 {[%clk 0:00:14.5]} 52. a4
{[%clk 0:00:11.1]} 52... Bg3 {[%clk 0:00:14.1]} 53. Ke2 {[%clk 0:00:04.3]} 53...
Bh2 {[%clk 0:00:14.2]} 54. Kf2 {[%clk 0:00:03.6]} 54... Bf4 {[%clk 0:00:12.7]}
55. a5 {[%clk 0:00:02.4]} 55... Bd2 {[%clk 0:00:12.7]} 56. c6 {[%clk 0:00:01.5]}
56... bxc6 {[%clk 0:00:13.6]} 57. a6 {[%clk 0:00:01.6]} 57... Ba5 {[%clk
0:00:14.2]} 58. Ke2 {[%clk 0:00:01.5]} 58... Bb6 {[%clk 0:00:14.4]} 59. Bb1
{[%clk 0:00:01.4]} 59... f6 {[%clk 0:00:14.5]} 60. Bc2 {[%clk 0:00:02.3]} 60...
c5 {[%clk 0:00:14.6]} 61. Kf3 {[%clk 0:00:02.8]} 61... c4 {[%clk 0:00:14.6]} 62.
Ke2 {[%clk 0:00:03.7]} 62... d4 {[%clk 0:00:14.8]} 63. Kf3 {[%clk 0:00:03.6]}
63... d3 {[%clk 0:00:14.9]} 64. Ba4 {[%clk 0:00:04.5]} 64... Kd4 {[%clk
0:00:15.2]} 65. Bc6 {[%clk 0:00:04.4]} 65... c3 {[%clk 0:00:15.3]} 66. Ba4
{[%clk 0:00:04.8]} 66... c2 {[%clk 0:00:15.2]} 0-1

[Event "*** SCC Grand Prix: Titled Tuesday Blitz"]
[Site "Chess.com"]
[Date "2020.09.08"]
[Round "6"]
[White "Jojo_1608"]
[Black "champ1000"]
[Result "0-1"]
[WhiteElo "2186"]
[BlackElo "2295"]
[TimeControl "180+1"]
[EndTime "11:09:00 PDT"]
[Termination "champ1000 won on time"]

1. d4 {[%clk 0:03:00.9]} 1... Nf6 {[%clk 0:02:55.5]} 2. c4 {[%clk 0:03:00.5]}
2... e6 {[%clk 0:02:54.2]} 3. Nc3 {[%clk 0:03:00.4]} 3... Bb4 {[%clk 0:02:52.9]}
4. e3 {[%clk 0:02:59.2]} 4... c5 {[%clk 0:02:48]} 5. Ne2 {[%clk 0:02:58.7]} 5...
cxd4 {[%clk 0:02:42.5]} 6. exd4 {[%clk 0:02:57.6]} 6... d5 {[%clk 0:02:42.5]} 7.
a3 {[%clk 0:02:57.3]} 7... Bxc3+ {[%clk 0:02:41.8]} 8. Nxc3 {[%clk 0:02:57]}
8... h6 {[%clk 0:02:33.6]} 9. c5 {[%clk 0:02:51.5]} 9... O-O {[%clk 0:02:28.6]}
10. Be2 {[%clk 0:02:46.1]} 10... Nc6 {[%clk 0:02:17.7]} 11. O-O {[%clk
0:02:43.5]} 11... e5 {[%clk 0:02:16.3]} 12. dxe5 {[%clk 0:02:40.1]} 12... Nxe5
{[%clk 0:02:17.2]} 13. Bf4 {[%clk 0:02:39.6]} 13... Re8 {[%clk 0:01:57.9]} 14.
Bb5 {[%clk 0:02:25]} 14... Bd7 {[%clk 0:01:57]} 15. Re1 {[%clk 0:02:23.6]} 15...
Bxb5 {[%clk 0:01:29.4]} 16. Nxb5 {[%clk 0:02:21.9]} 16... Ng6 {[%clk 0:01:12.4]}
17. Rxe8+ {[%clk 0:01:47.5]} 17... Nxe8 {[%clk 0:01:13.3]} 18. Bg3 {[%clk
0:01:38.5]} 18... a6 {[%clk 0:01:07.9]} 19. Nd6 {[%clk 0:01:35.6]} 19... Nxd6
{[%clk 0:01:03.5]} 20. cxd6 {[%clk 0:01:22.1]} 20... Qg5 {[%clk 0:01:00.5]} 21.
Qd4 {[%clk 0:01:21.1]} 21... Kh7 {[%clk 0:00:31.7]} 22. Rd1 {[%clk 0:01:19.4]}
22... f5 {[%clk 0:00:16]} 23. Be5 {[%clk 0:01:03]} 23... Re8 {[%clk 0:00:15]}
24. f4 {[%clk 0:01:00.1]} 24... Qg4 {[%clk 0:00:13.2]} 25. Qxd5 {[%clk
0:00:45.5]} 25... Nxe5 {[%clk 0:00:12]} 26. fxe5 {[%clk 0:00:44.3]} 26... Rxe5
{[%clk 0:00:12.9]} 27. Qd3 {[%clk 0:00:32.9]} 27... Re2 {[%clk 0:00:11.4]} 28.
g3 {[%clk 0:00:25.6]} 28... Rxb2 {[%clk 0:00:05.8]} 29. Rf1 {[%clk 0:00:19.4]}
29... Qh3 {[%clk 0:00:04.3]} 30. Qxf5+ {[%clk 0:00:18.7]} 30... Qxf5 {[%clk
0:00:04.7]} 31. Rxf5 {[%clk 0:00:18.4]} 31... Rd2 {[%clk 0:00:05.6]} 32. Rf7
{[%clk 0:00:17.7]} 32... Rxd6 {[%clk 0:00:05.6]} 33. Rxb7 {[%clk 0:00:17.6]}
33... Rd3 {[%clk 0:00:05.9]} 34. a4 {[%clk 0:00:17.2]} 34... Rd4 {[%clk
0:00:05.3]} 35. a5 {[%clk 0:00:16.5]} 35... Rd5 {[%clk 0:00:05.7]} 36. Kf2
{[%clk 0:00:16.2]} 36... Rxa5 {[%clk 0:00:05.9]} 37. Kf3 {[%clk 0:00:15.9]}
37... Ra4 {[%clk 0:00:05.8]} 38. Ra7 {[%clk 0:00:15.2]} 38... Kg6 {[%clk
0:00:04.9]} 39. h4 {[%clk 0:00:14.9]} 39... Kf6 {[%clk 0:00:03.9]} 40. g4 {[%clk
0:00:14.2]} 40... Kg6 {[%clk 0:00:03.8]} 41. h5+ {[%clk 0:00:13.3]} 41... Kf6
{[%clk 0:00:04.2]} 42. Kg3 {[%clk 0:00:12.9]} 42... Ra5 {[%clk 0:00:04]} 43. Kh4
{[%clk 0:00:12.4]} 43... Ra3 {[%clk 0:00:04.2]} 44. Rb7 {[%clk 0:00:11.9]} 44...
a5 {[%clk 0:00:04.5]} 45. Ra7 {[%clk 0:00:09.7]} 45... a4 {[%clk 0:00:03.6]} 46.
Ra6+ {[%clk 0:00:09.1]} 46... Kf7 {[%clk 0:00:04.1]} 47. g5 {[%clk 0:00:08.2]}
47... hxg5+ {[%clk 0:00:03.3]} 48. Kxg5 {[%clk 0:00:07.9]} 48... Ra1 {[%clk
0:00:02.8]} 49. Ra7+ {[%clk 0:00:07.1]} 49... Kf8 {[%clk 0:00:02.1]} 50. Kg6
{[%clk 0:00:07]} 50... Rg1+ {[%clk 0:00:02]} 51. Kh7 {[%clk 0:00:06.7]} 51...
Rh1 {[%clk 0:00:01.5]} 52. Kg6 {[%clk 0:00:06.3]} 52... Rg1+ {[%clk 0:00:01.6]}
53. Kh7 {[%clk 0:00:04.4]} 53... Rg4 {[%clk 0:00:02]} 54. Ra8+ {[%clk
0:00:03.3]} 54... Kf7 {[%clk 0:00:02.3]} 55. Ra6 {[%clk 0:00:02.7]} 55... Rh4
{[%clk 0:00:01.2]} 56. Ra7+ {[%clk 0:00:01.5]} 56... Kf6 {[%clk 0:00:01.7]} 0-1